{"text_format":"2","workbook":"xlsx","n_sheets":1,"sheets":["Munka1"],"not_rendered":{"charts":0,"images":0,"macros":0,"external_links":0,"defined_names":0,"comments":0,"pivot_tables":0},"unopened":[],"bounds":{"document_bytes":16777216,"sheet_cells":100000,"run_cost":"one","rows_first":2000,"rows_last":500,"rows_between":2000,"halvings":0,"cell_chars":16384,"cell_head_chars":4096},"cells_cut":0,"cells_raw":0,"read":"whole","date_system":"1900"}

{"sheet":"Munka1","index":0,"n_rows":36,"n_cols":7,"rows_kept":36,"cut":false,"hidden":false,"merged":[[27,0,27,6],[25,0,26,6],[19,0,20,6],[0,0,1,6],[2,0,2,6],[21,0,21,6]]}
[]
[]
["1. rész Általános konyhai eszközök:"]
["Megnevezés","Leírás","Darabszám",null,"Nettó Egységár","Nettó Összár","Bruttó Összár"]
["Habverő ","minimum 30 cm, akasztható",4,null,null,{"$f":"E5*C5","v":0},{"$f":"F5*1.27","v":0}]
["Szervírozókanál (spicckanál)","minimum 40 cm, rozsdamentes",4,null,null,{"$f":"E6*C6","v":0},{"$f":"F6*1.27","v":0}]
["Húsfogó olló (hús csipesz)","minimum 30 cm",4,null,null,0,0]
["Fa kanál ","25 cm, a fejrész kerek formájú.",3,null,null,0,0]
["Fa kanál","30 cm, kerek fej forma",3,null,null,0,0]
["Fa kanál ","40 cm,  kerek fej forma",3,null,null,0,0]
["Fa kanál ","50 cm, kerek fej forma",3,null,null,0,0]
["Fém tojásszeletelő","alumínium test, acél szál",1,null,null,0,0]
["Kancsó tetővel","polipropilén, 2,2 L",30,null,null,0,0]
["Reszelő","minimum 24 cm, négyoldalú, rozsdamentes",3,null,null,0,0]
["Passzírozó szűrő","20 cm, rozsdamentes",2,null,null,0,0]
["Passzírozó szűrő","22 cm, rozsdamentes",2,null,null,0,0]
["Hámozókés","teljes hossz 8 cm, rozsdamentes",5,null,null,0,0]
["Szűrőkanál","35 cm, erősített szűrő fanyéllel, dupla hálós",1,null,null,0,0]
["Összesen",{"$nulls":4},{"$f":"SUM(F5:F18)","v":0},0]
[]
[]
["2. rész Egyéni tálca kiegészítő:"]
["Megnevezés",null,"Darabszám",null,"Nettó Egységár","Nettó Összár","Bruttó Összár"]
["Menütálcába leveses csésze "," (csak 110x110x70 mm), BLANCOCASA menü mobil tálcához, 0,4 L, fehér színű",100,null,null,{"$f":"C24*E24","v":0},{"$f":"F24*1.27","v":0}]
["Összesen",{"$nulls":4},{"$f":"SUM(F24)","v":0},{"$f":"F25*1.27","v":0}]
[" "]
[]
["3. rész Konyhai kisgépek:"]
["Megnevezés",null,"Darabszám",null,"Egységár","Összár","Bruttó Összár"]
["Nagyteljesítményű turmixgép (legalább 1500 W)","legalább 1500 W",1,null,null,{"$f":"E30*C30","v":0},{"$f":"F30*1.27","v":0}]
["Kenyérpirító ","4 szeletes",1,null,null,{"$f":"E31*C31","v":0},{"$f":"F31*1.27","v":0}]
["Mikrohullámú sütő","Űrtartalom 20 l, 800 W, Méretek (Szé / Ma / Mé) 45.1 cm x 25.7 cm x 34.3 cm",1,null,null,{"$f":"E32*C32","v":0},0]
["Összesen",{"$nulls":4},{"$f":"SUM(F30:F32)","v":0},0]
[{"$nulls":6}," "]
[]
["Mindösszesen",{"$nulls":4},{"$f":"F19+F25+F33","v":0},{"$f":"G33+G25+G19","v":0}]